fUSD/lending_fUSD_20240617
["ID","MTS","AMOUNT","RATE_DAILY","PERIOD"]
[329746330,1718644247227,-500.0,0.00021917,2]
[329746331,1718644247236,-500.0,0.00021917,2]
[329746332,1718644247245,-1211.45,0.00021917,2]
[329746333,1718644247255,-500.0,0.00021917,2]
[329746334,1718644247265,-1053.95,0.00021917,2]
[329746335,1718644247274,-500.0,0.00021917,2]
[329746336,1718644247284,-500.0,0.00021917,2]
[329746337,1718644247294,-715.77,0.00021917,2]
[329746338,1718644247304,-500.0,0.00021917,2]
[329746339,1718644247319,-500.0,0.00021917,2]
[329746340,1718644247329,-500.0,0.00021917,2]
[329746341,1718644247341,-533.72227525,0.00021917,2]
[329746342,1718644247351,-915.48,0.00021917,2]
[329746343,1718644247361,-500.0,0.00021917,2]
[329746344,1718644247370,-500.0,0.00021917,2]
[329746345,1718644247379,-500.0,0.00021917,2]
[329746346,1718644247389,-500.0,0.00021917,2]
[329746347,1718644247401,-500.0,0.00021917,2]
[329746348,1718644247411,-2030.5,0.00021917,2]
[329746349,1718644247420,-500.0,0.00021917,2]
[329746350,1718644247430,-500.0,0.00021917,2]
[329746351,1718644247439,-500.0,0.00021917,2]
[329746352,1718644247449,-220.09025304,0.00021917,2]
[329746353,1718644247459,-1494.65,0.00021917,2]
[329746354,1718644247467,-151.0,0.00021917,2]
[329746355,1718644247477,-599.07,0.00021917,2]
[329746356,1718644247486,-500.0,0.00021917,2]
[329746357,1718644247496,-500.0,0.00021917,2]
[329746358,1718644247505,-500.0,0.00021917,2]
[329746359,1718644247515,-506.07892821,0.00021917,2]
[329746360,1718644247524,-500.0,0.00021917,2]
[329746361,1718644247534,-751.81,0.00021917,2]
[329746362,1718644247543,-500.0,0.00021917,2]
[329746363,1718644247553,-238.33044982,0.00021917,2]
[329746364,1718644247563,-500.0,0.00021917,2]
[329746365,1718644247572,-500.0,0.00021917,2]
[329746366,1718644247582,-500.0,0.00021917,2]
[329746367,1718644247595,-1654.75,0.00021917,2]
[329746368,1718644247604,-500.0,0.00021917,2]
[329746369,1718644247614,-500.0,0.00021917,2]
[329746370,1718644247623,-500.0,0.00021917,2]
[329746371,1718644247635,-500.0,0.00021917,2]
[329746372,1718644247644,-500.0,0.00021917,2]
[329746373,1718644247654,-500.0,0.00021917,2]
[329746374,1718644247663,-500.0,0.00021917,2]
[329746375,1718644247673,-582.95,0.00021917,2]
[329746376,1718644247682,-844.39,0.00021917,2]
[329746377,1718644247692,-500.0,0.00021917,2]
[329746378,1718644247702,-500.0,0.00021917,2]
[329746379,1718644247712,-500.0,0.00021917,2]
[329746380,1718644247721,-500.0,0.00021917,2]
[329746381,1718644247732,-500.0,0.00021917,2]
[329746382,1718644247742,-153.68639836,0.00021917,2]
[329746383,1718644247765,-418.84360164,0.00021917,2]
[329746384,1718644247775,-572.48827755,0.00021917,2]
[329746385,1718644247784,-500.0,0.00021917,2]
[329746386,1718644247794,-205.93974479,0.00021917,2]
[329746387,1718644248851,-294.06025521,0.00021917,2]
[329746388,1718644248861,-500.0,0.00021917,2]
[329746389,1718644248871,-500.0,0.00021917,2]
[329746390,1718644248880,-807.75,0.00021917,2]
[329746391,1718644248890,-504.00669,0.00021917,2]
[329746392,1718644248900,-500.0,0.00021917,2]
[329746393,1718644248910,-500.0,0.00021917,2]
[329746394,1718644248919,-500.0,0.00021917,2]
[329746395,1718644248929,-500.0,0.00021917,2]
[329746396,1718644248938,-500.0,0.00021917,2]
[329746397,1718644248947,-500.0,0.00021917,2]
[329746398,1718644248956,-500.0,0.00021917,2]
[329746399,1718644248965,-500.0,0.00021917,2]
[329746400,1718644248975,-1339.09,0.00021917,2]
[329746401,1718644248984,-500.0,0.00021917,2]
[329746402,1718644248993,-550.93000115,0.00021917,2]
[329746403,1718644249002,-536.3,0.00021917,2]
[329746404,1718644249013,-500.0,0.00021917,2]
[329746405,1718644249022,-500.0,0.00021917,2]
[329746406,1718644249031,-500.0,0.00021917,2]
[329746407,1718644249041,-500.0,0.00021917,2]
[329746408,1718644249050,-500.0,0.00021917,2]
[329746409,1718644249060,-500.0,0.00021917,2]
[329746410,1718644249069,-500.0,0.00021917,2]
[329746411,1718644249078,-500.0,0.00021917,2]
[329746412,1718644249090,-1401.57,0.00021917,2]
[329746413,1718644249099,-507.09820889,0.00021917,2]
[329746414,1718644249108,-522.25436774,0.00021917,2]
[329746415,1718644249117,-500.0,0.00021917,2]
[329746416,1718644249126,-500.0,0.00021917,2]
[329746417,1718644249136,-2013.24,0.00021917,2]
[329746418,1718644249145,-500.0,0.00021917,2]
[329746419,1718644249155,-696.6,0.00021917,2]
[329746420,1718644249164,-500.0,0.00021917,2]
[329746421,1718644249174,-703.01,0.00021917,2]
[329746422,1718644249183,-500.0,0.00021917,2]
[329746423,1718644249192,-1912.36,0.00021917,2]
[329746424,1718644249202,-500.0,0.00021917,2]
[329746425,1718644249212,-1304.055872,0.00021917,2]
[329746426,1718644249222,-3943.27,0.00021917,2]
[329746427,1718644249232,-500.0,0.00021917,2]
[329746428,1718644249242,-500.0,0.00021917,2]
[329746429,1718644249251,-500.0,0.00021917,2]
[329746430,1718644249261,-500.0,0.00021917,2]
[329746431,1718644249271,-1304.055872,0.00021917,2]
[329746432,1718644249280,-899.99,0.00021917,2]
[329746433,1718644249289,-624.52,0.00021917,2]
[329746434,1718644249300,-151.0,0.00021917,2]
[329746435,1718644249310,-500.0,0.00021917,2]
[329746436,1718644249324,-1000.0,0.00021917,2]
[329746437,1718644249333,-514.53842602,0.00021917,2]
[329746438,1718644249345,-225.84870746,0.00021917,2]
[329746439,1718644249355,-500.0,0.00021917,2]
[329746440,1718644249365,-500.0,0.00021917,2]
[329746441,1718644249374,-500.0,0.00021917,2]
[329746442,1718644249383,-500.0,0.00021917,2]
[329746443,1718644249396,-1925.21,0.00021917,2]
[329746444,1718644249407,-229.47009612,0.00021917,2]
[329746445,1718644249416,-500.0,0.00021917,2]
[329746446,1718644249426,-500.0,0.00021917,2]
[329746447,1718644249435,-901.45,0.00021917,2]
[329746448,1718644249445,-500.0,0.00021917,2]
[329746449,1718644249454,-1083.05,0.00021917,2]
[329746450,1718644249464,-631.34,0.00021917,2]
[329746451,1718644249474,-500.0,0.00021917,2]
[329746452,1718644249484,-500.0,0.00021917,2]
[329746453,1718644249493,-500.0,0.00021917,2]
[329746454,1718644249503,-500.0,0.00021917,2]
[329746455,1718644249512,-500.0,0.00021917,2]
[329746456,1718644249522,-500.0,0.00021917,2]
[329746457,1718644249532,-541.14,0.00021917,2]
[329746458,1718644249541,-500.0,0.00021917,2]
[329746459,1718644249551,-202.19078867,0.00021917,2]
[329746460,1718644249568,-297.80921133,0.00021917,2]
[329746461,1718644249578,-500.0,0.00021917,2]
[329746462,1718644249587,-500.0,0.00021917,2]
[329746463,1718644249597,-272.74596634,0.00021917,2]
[329746464,1718644249609,-227.25403366,0.00021917,2]
[329746465,1718644249618,-500.0,0.00021917,2]
[329746466,1718644249628,-500.0,0.00021917,2]
[329746467,1718644249637,-953.52,0.00021917,2]
[329746468,1718644249647,-500.0,0.00021917,2]
[329746469,1718644249657,-500.0,0.00021917,2]
[329746470,1718644249666,-500.0,0.00021917,2]
[329746471,1718644249676,-702.85,0.00021917,2]
[329746472,1718644249686,-550.04,0.00021917,2]
[329746473,1718644249695,-500.0,0.00021917,2]
[329746474,1718644249705,-500.0,0.00021917,2]
[329746475,1718644249714,-500.0,0.00021917,2]
[329746476,1718644249723,-500.0,0.00021917,2]
[329746477,1718644249733,-151.0,0.00021917,2]
[329746478,1718644249742,-625.22,0.00021917,2]
[329746479,1718644249752,-500.0,0.00021917,2]
[329746480,1718644249761,-895.13,0.00021917,2]
[329746481,1718644249770,-418.76666475,0.00021917,2]
[329746482,1718644249779,-500.0,0.00021917,2]
[329746483,1718644249789,-500.0,0.00021917,2]
[329746484,1718644249798,-500.0,0.00021917,2]
[329746485,1718644249807,-218.17530004,0.00021917,2]
[329746486,1718644249817,-874.24,0.00021917,2]
[329746487,1718644249826,-522.87,0.00021917,2]
[329746488,1718644249837,-500.0,0.00021917,2]
[329746489,1718644249846,-362.03615899,0.00021917,2]
[329746490,1718644249856,-640.08,0.00021917,2]
[329746491,1718644249865,-500.0,0.00021917,2]
[329746492,1718644249876,-500.0,0.00021917,2]
[329746493,1718644249886,-500.0,0.00021917,2]
[329746494,1718644249897,-500.0,0.00021917,2]
[329746495,1718644249908,-680.48,0.00021917,2]
[329746496,1718644249919,-515.79213407,0.00021917,2]
[329746497,1718644249933,-500.0,0.00021917,2]
[329746498,1718644249944,-575.3439532,0.00021917,2]
[329746499,1718644249953,-505.82552742,0.00021917,2]
[329746500,1718644249963,-500.0,0.00021917,2]
[329746501,1718644249973,-166.18882057,0.00021917,2]
[329746502,1718644249983,-620.27,0.00021917,2]
[329746503,1718644249992,-500.0,0.00021917,2]
[329746504,1718644250001,-573.64806932,0.00021917,2]
[329746505,1718644250011,-500.0,0.00021917,2]
[329746506,1718644250021,-500.0,0.00021917,2]
[329746507,1718644250030,-500.0,0.00021917,2]
[329746508,1718644250040,-598.96,0.00021917,2]
[329746509,1718644250049,-500.0,0.00021917,2]
[329746510,1718644250058,-500.0,0.00021917,2]
[329746511,1718644250068,-500.0,0.00021917,2]
[329746512,1718644250077,-500.0,0.00021917,2]
[329746513,1718644250089,-500.0,0.00021917,2]
[329746514,1718644250098,-828.89,0.00021917,2]
[329746515,1718644250107,-500.0,0.00021917,2]
[329746516,1718644250116,-500.0,0.00021917,2]
[329746517,1718644250125,-500.0,0.00021917,2]
[329746518,1718644250134,-500.0,0.00021917,2]
[329746519,1718644250143,-500.0,0.00021917,2]
[329746520,1718644250152,-513.77815716,0.00021917,2]
[329746521,1718644250161,-500.0,0.00021917,2]
[329746522,1718644250171,-586.52,0.00021917,2]
[329746523,1718644250180,-500.0,0.00021917,2]
[329746524,1718644250189,-500.0,0.00021917,2]
[329746525,1718644250198,-500.0,0.00021917,2]
[329746526,1718644250207,-500.0,0.00021917,2]
[329746527,1718644250216,-246.12118082,0.00021917,2]
[329746528,1718644250232,-588.10881918,0.00021917,2]
[329746529,1718644250241,-500.0,0.00021917,2]
[329746530,1718644250251,-690.84,0.00021917,2]
[329746531,1718644250261,-500.0,0.00021917,2]
[329746532,1718644250270,-500.0,0.00021917,2]
[329746533,1718644250279,-500.0,0.00021917,2]
[329746534,1718644250288,-500.0,0.00021917,2]
[329746535,1718644250297,-539.41006883,0.00021917,2]
[329746536,1718644250306,-500.0,0.00021917,2]
[329746537,1718644250319,-554.41744389,0.00021917,2]
[329746538,1718644250328,-500.0,0.00021917,2]
[329746539,1718644250339,-537.96,0.00021917,2]
[329746540,1718644250348,-500.0,0.00021917,2]
[329746541,1718644250358,-1070.27,0.00021917,2]
[329746542,1718644250370,-500.0,0.00021917,2]
[329746543,1718644250379,-500.0,0.00021917,2]
[329746544,1718644250388,-500.0,0.00021917,2]
[329746545,1718644250400,-500.0,0.00021917,2]
[329746546,1718644250410,-500.0,0.00021917,2]
[329746547,1718644250419,-522.22023072,0.00021917,2]
[329746548,1718644250428,-500.0,0.00021917,2]
[329746549,1718644250438,-500.0,0.00021917,2]
[329746550,1718644250448,-562.57,0.00021917,2]
[329746551,1718644250457,-500.0,0.00021917,2]
[329746552,1718644250466,-500.0,0.00021917,2]
[329746553,1718644250475,-500.0,0.00021917,2]
[329746554,1718644250484,-864.27,0.00021917,2]
[329746555,1718644250494,-500.0,0.00021917,2]
[329746556,1718644250504,-649.2,0.00021917,2]
[329746557,1718644250513,-500.0,0.00021917,2]
[329746558,1718644250523,-500.0,0.00021917,2]
[329746559,1718644250532,-500.0,0.00021917,2]
[329746560,1718644250541,-500.0,0.00021917,2]
[329746561,1718644250550,-525.42993718,0.00021917,2]
[329746562,1718644250559,-500.0,0.00021917,2]
[329746563,1718644250569,-1886.78,0.00021917,2]
[329746564,1718644250578,-500.0,0.00021917,2]
[329746565,1718644250589,-500.0,0.00021917,2]
[329746566,1718644250599,-544.2,0.00021917,2]
[329746567,1718644250608,-1600.73,0.00021917,2]
[329746568,1718644250617,-586.17,0.00021917,2]
[329746569,1718644250627,-500.0,0.00021917,2]
[329746570,1718644250636,-500.0,0.00021917,2]
[329746571,1718644250646,-500.0,0.00021917,2]
[329746572,1718644250655,-500.0,0.00021917,2]
[329746573,1718644250665,-500.0,0.00021917,2]
[329746574,1718644250674,-550.9540049,0.00021917,2]
[329746575,1718644250683,-500.0,0.00021917,2]
[329746576,1718644250692,-500.0,0.00021917,2]
[329746577,1718644250702,-500.0,0.00021917,2]
[329746578,1718644250713,-500.0,0.00021917,2]
[329746579,1718644250722,-500.0,0.00021917,2]
[329746580,1718644250731,-297.92323196,0.00021917,2]
[329746581,1718644250741,-500.0,0.00021917,2]
[329746582,1718644250750,-500.0,0.00021917,2]
[329746583,1718644250760,-500.0,0.00021917,2]
[329746584,1718644250769,-500.0,0.00021917,2]
[329746585,1718644250778,-500.0,0.00021917,2]
[329746586,1718644250788,-500.0,0.00021917,2]
[329746587,1718644250961,-744.03,0.00021917,2]
[329746588,1718644250971,-946.23,0.00021917,2]
[329746589,1718644250980,-726.03599334,0.00021917,2]
[329746590,1718644250995,-159.47400666,0.00021917,2]
[329746591,1718644251004,-222.58770393,0.00021917,2]
[329746592,1718644251016,-277.41229607,0.00021917,2]
[329746593,1718644251026,-386.22215513,0.00021917,2]
[329746594,1718644251056,-113.77784487,0.00021917,2]
[329746595,1718644251066,-500.0,0.00021917,2]
[329746596,1718644251075,-500.0,0.00021917,2]
[329746597,1718644251085,-456.35705441,0.00021917,2]
[329746598,1718644251099,-43.64294559,0.00021917,2]
[329746599,1718644251108,-500.0,0.00021917,2]
[329746600,1718644251117,-828.95,0.00021917,2]
[329746601,1718644251126,-500.0,0.00021917,2]
[329746602,1718644251136,-500.0,0.00021917,2]
[329746603,1718644251145,-477.67239634,0.00021917,2]
[329746604,1718644251158,-22.32760366,0.00021917,2]
[329746605,1718644251167,-500.0,0.00021917,2]
[329746606,1718644251177,-500.0,0.00021917,2]
[329746607,1718644251186,-852.34,0.00021917,2]
[329746608,1718644251196,-185.03605545,0.00021917,2]
[329746609,1718644251207,-263.3818754,0.00021917,2]
[329746610,1718644251219,-109.42206915,0.00021917,2]
[329746611,1718644251229,-217.91906334,0.00021917,2]
[329746612,1718644251241,-282.08093666,0.00021917,2]
[329746613,1718644251251,-513.48077377,0.00021917,2]
[329746614,1718644251261,-500.0,0.00021917,2]
[329746615,1718644251270,-500.0,0.00021917,2]
[329746616,1718644251279,-947.4,0.00021917,2]
[329746617,1718644251288,-500.0,0.00021917,2]
[329746618,1718644251297,-500.0,0.00021917,2]
[329746619,1718644251306,-500.0,0.00021917,2]
[329746620,1718644251319,-500.0,0.00021917,2]
[329746621,1718644251328,-638.76,0.00021917,2]
[329746622,1718644251338,-500.0,0.00021917,2]
[329746623,1718644251348,-500.0,0.00021917,2]
[329746624,1718644251358,-1672.3,0.00021917,2]
[329746625,1718644251367,-500.0,0.00021917,2]
[329746626,1718644251377,-659.23,0.00021917,2]
[329746627,1718644251386,-500.0,0.00021917,2]
[329746628,1718644251398,-787.14,0.00021917,2]
[329746629,1718644251408,-500.0,0.00021917,2]
[329746630,1718644251417,-500.0,0.00021917,2]
[329746631,1718644251426,-500.0,0.00021917,2]
[329746632,1718644251435,-500.0,0.00021917,2]
[329746633,1718644251445,-699.44,0.00021917,2]
[329746634,1718644251454,-500.0,0.00021917,2]
[329746635,1718644251464,-651.16,0.00021917,2]
[329746636,1718644251473,-151.0,0.00021917,2]
[329746637,1718644251482,-588.8,0.00021917,2]
[329746638,1718644251492,-500.0,0.00021917,2]
[329746639,1718644251502,-500.0,0.00021917,2]
[329746640,1718644251512,-932.88,0.00021917,2]
[329746641,1718644251521,-991.08,0.00021917,2]
[329746642,1718644251531,-500.0,0.00021917,2]
[329746643,1718644251540,-500.0,0.00021917,2]
[329746644,1718644251549,-1620.09,0.00021917,2]
[329746645,1718644251558,-500.0,0.00021917,2]
[329746646,1718644251568,-1505.54,0.00021917,2]
[329746647,1718644251577,-500.0,0.00021917,2]
[329746648,1718644251589,-500.0,0.00021917,2]
[329746649,1718644251598,-500.0,0.00021917,2]
[329746650,1718644251607,-500.0,0.00021917,2]
[329746651,1718644251616,-500.0,0.00021917,2]
[329746652,1718644251626,-500.0,0.00021917,2]
[329746653,1718644251636,-500.0,0.00021917,2]
[329746654,1718644251645,-580.85,0.00021917,2]
[329746655,1718644251655,-500.0,0.00021917,2]
[329746656,1718644251665,-500.0,0.00021917,2]
[329746657,1718644251674,-500.0,0.00021917,2]
[329746658,1718644251684,-200.0,0.00021917,2]
[329746659,1718644251693,-500.0,0.00021917,2]
[329746660,1718644251702,-500.0,0.00021917,2]
[329746661,1718644251712,-197.90915993,0.00021917,2]
[329746662,1718644251721,-500.0,0.00021917,2]
[329746663,1718644251731,-500.0,0.00021917,2]
[329746664,1718644251740,-500.0,0.00021917,2]
[329746665,1718644251749,-550.45,0.00021917,2]
[329746666,1718644251758,-1265.56,0.00021917,2]
[329746667,1718644251768,-500.0,0.00021917,2]
[329746668,1718644251778,-500.0,0.00021917,2]
[329746669,1718644251787,-177.372857,0.00021917,2]
[329746670,1718644251796,-728.8,0.00021917,2]
[329746671,1718644251806,-500.0,0.00021917,2]
[329746672,1718644251815,-2689.58,0.00021917,2]
[329746673,1718644251825,-500.0,0.00021917,2]
[329746674,1718644251834,-500.0,0.00021917,2]
[329746675,1718644251846,-500.0,0.00021917,2]
[329746676,1718644251855,-500.0,0.00021917,2]
[329746677,1718644251864,-500.0,0.00021917,2]
[329746678,1718644251873,-500.0,0.00021917,2]
[329746679,1718644251882,-500.0,0.00021917,2]
[329746680,1718644251892,-519.79817699,0.00021917,2]
[329746681,1718644251902,-500.0,0.00021917,2]
[329746682,1718644251911,-500.0,0.00021917,2]
[329746683,1718644251921,-500.0,0.00021917,2]
[329746684,1718644251931,-500.0,0.00021917,2]
[329746685,1718644251940,-500.0,0.00021917,2]
[329746686,1718644251949,-500.0,0.00021917,2]
[329746687,1718644251958,-177.372857,0.00021917,2]
[329746688,1718644251968,-511.38,0.00021917,2]
[329746689,1718644251983,-500.0,0.00021917,2]
[329746690,1718644252001,-1659.42,0.00021917,2]
[329746691,1718644252018,-291.461117,0.00021917,2]
[329746692,1718644252040,-500.0,0.00021917,2]
[329746693,1718644252061,-1092.74,0.00021917,2]
[329746694,1718644252078,-421.85079982,0.00021917,2]
[329746695,1718644252097,-500.0,0.00021917,2]
[329746696,1718644252112,-500.0,0.00021917,2]
[329746697,1718644252130,-500.0,0.00021917,2]
[329746698,1718644252147,-523.67647424,0.00021917,2]
[329746699,1718644252167,-508.84653414,0.00021917,2]
[329746700,1718644252180,-500.0,0.00021917,2]
[329746701,1718644252196,-597.82,0.00021917,2]
[329746702,1718644252212,-500.0,0.00021917,2]
[329746703,1718644252229,-500.0,0.00021917,2]
[329746704,1718644252241,-789.93,0.00021917,2]
[329746705,1718644252261,-500.0,0.00021917,2]
[329746706,1718644252276,-724.73,0.00021917,2]
[329746707,1718644252291,-713.19,0.00021917,2]
[329746708,1718644252305,-229.38084479,0.00021917,2]
[329746709,1718644252332,-592.26915521,0.00021917,2]
[329746711,1718644252347,-852.01,0.00021917,2]
[329746712,1718644252363,-151.0,0.00021917,2]
[329746713,1718644252377,-500.0,0.00021917,2]
[329746714,1718644252394,-500.0,0.00021917,2]
[329746715,1718644252410,-151.0,0.00021917,2]
[329746716,1718644252425,-101.31353475,0.00021917,2]
[329746717,1718644252443,-467.28646525,0.00021917,2]
[329746718,1718644252458,-507.2877174,0.00021917,2]
[329746719,1718644252473,-500.0,0.00021917,2]
[329746720,1718644252488,-694.55,0.00021917,2]
[329746721,1718644252502,-303.982759,0.00021917,2]
[329746722,1718644252517,-500.0,0.00021917,2]
[329746723,1718644252531,-50.62072252,0.00021917,2]
[329746724,1718644252564,-958.95927748,0.00021917,2]
[329746725,1718644252580,-500.0,0.00021917,2]
[329746726,1718644252599,-500.0,0.00021917,2]
[329746727,1718644252615,-673.94,0.00021917,2]
[329746728,1718644252629,-814.64,0.00021917,2]
[329746729,1718644252644,-500.0,0.00021917,2]
[329746730,1718644252659,-500.0,0.00021917,2]
[329746731,1718644252675,-500.0,0.00021917,2]
[329746732,1718644252691,-614.91,0.00021917,2]
[329746733,1718644252706,-500.0,0.00021917,2]
[329746734,1718644252720,-500.0,0.00021917,2]
[329746735,1718644252736,-824.88,0.00021917,2]
[329746736,1718644252751,-554.71751034,0.00021917,2]
[329746737,1718644252768,-500.0,0.00021917,2]
[329746738,1718644252783,-500.0,0.00021917,2]
[329746739,1718644252799,-901.05,0.00021917,2]
[329746740,1718644252815,-500.0,0.00021917,2]
[329746741,1718644252830,-500.0,0.00021917,2]
[329746742,1718644252848,-500.0,0.00021917,2]
[329746743,1718644252864,-540.41416425,0.00021917,2]
[329746744,1718644252880,-1462.38,0.00021917,2]
[329746745,1718644252896,-500.0,0.00021917,2]
[329746746,1718644252911,-500.0,0.00021917,2]
[329746747,1718644252926,-500.0,0.00021917,2]
[329746748,1718644252941,-500.0,0.00021917,2]
[329746749,1718644252956,-3316.99,0.00021917,2]
[329746750,1718644252972,-500.0,0.00021917,2]
[329746751,1718644252987,-741.06,0.00021917,2]
[329746752,1718644253002,-500.0,0.00021917,2]
[329746753,1718644253017,-1667.36,0.00021917,2]
[329746754,1718644253031,-500.0,0.00021917,2]
[329746755,1718644253046,-501.20983259,0.00021917,2]
[329746756,1718644253060,-500.0,0.00021917,2]
[329746757,1718644253075,-500.0,0.00021917,2]
[329746758,1718644253092,-500.0,0.00021917,2]
[329746759,1718644253107,-500.0,0.00021917,2]
[329746760,1718644253122,-882.98,0.00021917,2]
[329746761,1718644253136,-500.0,0.00021917,2]
[329746762,1718644253152,-184.87893351,0.00021917,2]
[329746763,1718644253166,-500.0,0.00021917,2]
[329746764,1718644253182,-500.0,0.00021917,2]
[329746765,1718644253197,-500.0,0.00021917,2]
[329746766,1718644253212,-1404.81,0.00021917,2]
[329746767,1718644253227,-500.0,0.00021917,2]
[329746768,1718644253242,-500.0,0.00021917,2]
[329746769,1718644253257,-660.45,0.00021917,2]
[329746770,1718644253273,-500.0,0.00021917,2]
[329746771,1718644253288,-500.0,0.00021917,2]
[329746772,1718644253303,-500.0,0.00021917,2]
[329746773,1718644253321,-500.0,0.00021917,2]
[329746774,1718644253336,-500.0,0.00021917,2]
[329746775,1718644253353,-500.0,0.00021917,2]
[329746776,1718644253367,-500.0,0.00021917,2]
[329746777,1718644253381,-500.0,0.00021917,2]
[329746778,1718644253397,-500.0,0.00021917,2]
[329746779,1718644253412,-693.29,0.00021917,2]
[329746780,1718644253426,-544.23477252,0.00021917,2]
[329746781,1718644253440,-527.12,0.00021917,2]
[329746782,1718644253450,-500.0,0.00021917,2]
[329746783,1718644253459,-500.0,0.00021917,2]
[329746784,1718644253469,-500.0,0.00021917,2]
[329746785,1718644253478,-4880.92,0.00021917,2]
[329746786,1718644253487,-500.0,0.00021917,2]
[329746787,1718644253497,-500.0,0.00021917,2]
[329746788,1718644253506,-500.0,0.00021917,2]
[329746789,1718644253516,-500.0,0.00021917,2]
[329746790,1718644253525,-500.0,0.00021917,2]
[329746791,1718644253534,-500.0,0.00021917,2]
[329746792,1718644253543,-187.764506,0.00021917,2]
[329746793,1718644253552,-500.0,0.00021917,2]
[329746794,1718644253562,-500.0,0.00021917,2]
[329746795,1718644253571,-500.0,0.00021917,2]
[329746796,1718644253892,-500.0,0.00021917,2]
[329746797,1718644253928,-500.0,0.00021917,2]
[329746798,1718644253945,-387.83,0.00021917,2]
[329746799,1718644253954,-513.48,0.00021917,2]
[329746800,1718644253964,-513.48,0.00021917,2]
[329746801,1718644253973,-513.48,0.00021917,2]
[329746802,1718644253982,-513.48,0.00021917,2]
[329746803,1718644253991,-500.0,0.00021917,2]
[329746804,1718644254001,-513.48,0.00021917,2]
[329746805,1718644254010,-187.764506,0.00021917,2]
[329746806,1718644254020,-513.48,0.00021917,2]
[329746807,1718644254029,-513.48,0.00021917,2]
[329746808,1718644254038,-509.08376204,0.00021917,2]
[329746809,1718644254048,-513.48,0.00021917,2]
[329746810,1718644254057,-513.48,0.00021917,2]
[329746811,1718644254066,-500.0,0.00021917,2]
[329746812,1718644254076,-513.48,0.00021917,2]
[329746813,1718644254086,-500.0,0.00021917,2]
[329746814,1718644254097,-513.48,0.00021917,2]
[329746815,1718644254107,-513.48,0.00021917,2]
[329746816,1718644254116,-513.48,0.00021917,2]
[329746817,1718644254125,-636.8,0.00021917,2]
[329746818,1718644254135,-513.48,0.00021917,2]
[329746819,1718644254144,-513.48,0.00021917,2]
[329746820,1718644254153,-1301.64,0.00021917,2]
[329746821,1718644254163,-500.0,0.00021917,2]
[329746822,1718644254172,-513.48,0.00021917,2]
[329746823,1718644254181,-513.48,0.00021917,2]
[329746824,1718644254190,-513.48,0.00021917,2]
[329746825,1718644254200,-513.48,0.00021917,2]
[329746826,1718644254209,-513.48,0.00021917,2]
[329746827,1718644254219,-513.48,0.00021917,2]
[329746828,1718644254228,-513.48,0.00021917,2]
[329746829,1718644254237,-513.48,0.00021917,2]
[329746830,1718644254247,-227.88273527,0.00021917,2]